Cogmind - Beta 11 *** ADVENTURER MODE // 2022.03.20 @ 23:45:21 Player: Zorg Result: Destroyed by S-27 Virus with Autogun Performance ------------- Evolutions (3) 1500 Regions Visited (7) 1400 Robots Destroyed (22) 110 Value Destroyed (503) 503 Prototype IDs (3) 60 Alien Tech Used (0) 0 Bonus (600) 600 TOTAL SCORE: 4173 Bonus ------- Met Imprinter 300 Was Imprinted 300 Cogmind --------- Core Integrity 0/700 Matter 300/300 Energy 100/100 System Corruption 0% Temperature Cool (9) Movement Flying (35) Location -6/Proximity Caves Parts ------- > --- POWER (4) -------- (None) > --- PROPULSION (3) --- Cooled VTOL Module > --- UTILITY (4) ------ Improved Signal Interpreter > --- WEAPON (2) ------- CR-A16's Pointy Stick > --- INVENTORY (5) ---- Makeshift Power Source Cryofiber Web Trap Scanner Advanced Targeting Computer Peak State ------------ > --- POWER ------------ Makeshift Power Source Makeshift Power Source > --- PROPULSION ------- Cesium-ion Thruster Cooled VTOL Module Cooled VTOL Module > --- UTILITY ---------- Weight Redist. System Improved Signal Interpreter Improved Melee Analysis Suite Hacking Drone Bay > --- WEAPON ----------- CR-A16's Pointy Stick > --- INVENTORY -------- Cryofiber Web Trap Scanner Advanced Targeting Computer [Rating: 43] Favorites ----------- Power Light Ion Engine Engine Light Ion Engine Propulsion Cooled VTOL Module Wheel Wheel Flight Unit Cooled VTOL Module Utility Weight Redist. System Device Weight Redist. System Storage High-capacity Matter Pod Processor Visual Processing Unit Hackware Hacking Suite Weapon CR-A16's Pointy Stick Energy Gun Beam Rifle Piercing Weapon CR-A16's Pointy Stick Build | -11 -10 -9 -8 -7 -7 -7 -6 ------- Run | Scr Mat Mat Mat Fac Low Zio Pro Slots Evolved 6 | . . 2 2 2 . . . Power 3 | . . 1 1 1 . . . Propulsion 1 | . . . . 1 . . . Utility 2 | . . 1 1 . . . . Weapon . | . . . . . . . . Parts Attached 41 | 4 2 12 2 14 . 7 . Power 8 | 1 . 1 . 4 . 2 . Engine 8 | 1 . 1 . 4 . 2 . Core . | . . . . . . . . Reactor . | . . . . . . . . Propulsion 11 | 2 . 4 . 4 . 1 . Treads . | . . . . . . . . Leg . | . . . . . . . . Wheel 3 | 2 . 1 . . . . . Hover . | . . . . . . . . Flight 8 | . . 3 . 4 . 1 . Utility 14 | . 1 3 2 5 . 3 . Device 7 | . . 2 1 3 . 1 . Storage 3 | . 1 1 . 1 . . . Processor 3 | . . . . 1 . 2 . Hackware 1 | . . . 1 . . . . Protection . | . . . . . . . . Artifact . | . . . . . . . . Weapon 8 | 1 1 4 . 1 . 1 . Energy Gun 6 | 1 1 4 . . . . . Energy Cannon . | . . . . . . . . Ballistic Gun . | . . . . . . . . Ballistic Cannon . | . . . . . . . . Launcher . | . . . . . . . . Special Weapon . | . . . . . . . . Impact Weapon . | . . . . . . . . Slashing Weapon . | . . . . . . . . Piercing Weapon 2 | . . . . 1 . 1 . Special Melee Weapon . | . . . . . . . . Unidentified Prototypes 3 | . . . . 2 . 1 . Parts Lost 22 | . . 2 . 5 9 . 6 Power 7 | . . 1 . 1 4 . 1 Propulsion 7 | . . 1 . 3 1 . 2 Utility 6 | . . . . 1 2 . 3 Weapon 2 | . . . . . 2 . . Highest Loss Streak 9 | . . 2 . 4 9 . 6 To Critical Strikes . | . . . . . . . . Average Slot Usage (%) 65 | . 73 73 54 61 81 64 57 Engine 9 | . 14 9 9 10 21 4 5 Wheel 3 | . 28 11 . . . . . Flight 15 | . . 9 18 13 21 21 17 Device 11 | . . 17 11 10 13 13 11 Storage 2 | . 10 8 . 2 . . . Processor 8 | . . . . 5 7 16 15 Hackware 2 | . . . 6 7 4 . . Energy Gun 5 | . 19 18 9 3 6 . . Piercing Weapon 4 | . . . . 5 4 6 7 Naked Turns . | . . . . . . . . Heaviest Build 22 | 5 10 15 8 22 22 8 8 Greatest Support 22 | 20 20 20 8 22 22 10 10 Greatest Overweight (x) 4 | . . 1 . 4 . . . Average Overweight (x) . | . . . . . . . . Largest Inventory Capacity 5 | 5 5 5 5 5 5 5 5 Average Capacity 5 | 5 5 5 5 5 5 5 5 Most Carried 5 | 2 1 5 5 5 5 5 4 Average Carried 3 | . . 3 4 4 5 3 4 Final Capacity 5 | 5 5 5 5 5 5 5 5 Final Carried 5 | . . 2 5 5 5 4 4 Class Distribution -------------------- 36% | Sprinter 18% | Mutant 16% | Scavenger-Mutant 15% | Hacker-Mutant 9% | Hacker-Sprinter 5% | Scavenger-Sprinter Dominant Class ---------------- Mutant | -10/Materials Mutant | -9/Materials Scavenger-Mutant | -8/Materials Hacker-Mutant | -7/Factory Scavenger-Sprinter | -7/Lower Caves Sprinter | -7/Zion Mutant | -6/Proximity Caves Resources | -11 -10 -9 -8 -7 -7 -7 -6 ----------- Run | Scr Mat Mat Mat Fac Low Zio Pro Matter Collected 769 | 240 . 298 . 173 9 49 . Remotely . | . . . . . . . . Salvage Created 681 | 36 . 332 50 213 50 . . Parts 49 | 1 . 23 2 19 4 . . Haulers Intercepted 1 | . . . . 1 . . . Recyclers Shooed . | . . . . . . . . Parts Field Recycled . | . . . . . . . . Retrieved Matter . | . . . . . . . . Parts Self-Destructed 6 | . . . . . 4 . 2 Prevented . | . . . . . . . . Kills | -11 -10 -9 -8 -7 -7 -7 -6 ------- Run | Scr Mat Mat Mat Fac Low Zio Pro Combat Hostiles Destroyed 13 | 1 . 8 1 1 2 . . Melee 1 | . . . . 1 . . . Guns 11 | 1 . 7 1 . 2 . . Classes Destroyed 11 | 1 . 5 1 4 . . . Worker 2 | . . 1 . 1 . . . Builder 1 | . . . . 1 . . . Tunneler 1 | . . . . 1 . . . Hauler 1 | . . . . 1 . . . Mechanic 1 | . . . . 1 . . . Operator 1 | . . 1 . . . . . Watcher 2 | . . 1 . 1 . . . Swarmer 6 | . . 4 . . 2 . . Grunt 2 | 1 . 1 . . . . . Sentry 3 | . . 3 . . . . . Hunter 2 | . . . 1 1 . . . Best Kill Streak 9 | 1 . 9 1 3 2 . . Combat Bots Only 7 | 1 . 7 1 1 2 . . Max Kills in Single Turn 2 | 1 . 2 1 1 1 . . Gunslinging 1 | . . 1 . . . . . Exploded . | . . . . . . . . Melee 1 | . . . . 1 . . . Uniques/NPCs Destroyed . | . . . . . . . . Combat | -11 -10 -9 -8 -7 -7 -7 -6 -------- Run | Scr Mat Mat Mat Fac Low Zio Pro Damage Taken 1947 | 16 66 138 102 171 592 . 862 Core 782 | . 12 31 32 52 185 . 470 Absorbed by Shields . | . . . . . . . . Regen/Repaired (Parts) 28 | . . . . 28 . . . Core Remaining (%) 95 | 100 95 92 94 . . . . Volleys Fired 54 | 4 . 18 12 13 7 . . Largest 2 | 1 . 2 1 1 1 . . Hottest 112 | 50 . 112 56 40 40 . . Shots Fired 71 | 4 . 35 12 13 7 . . Gun 71 | 4 . 35 12 13 7 . . Cannon . | . . . . . . . . Launcher . | . . . . . . . . Special . | . . . . . . . . Kinetic . | . . . . . . . . Thermal 66 | 4 . 30 12 13 7 . . Explosive . | . . . . . . . . Electromagnetic 5 | . . 5 . . . . . Robot Hit Streak 19 | 4 . 19 9 4 10 . . Robot Miss Streak 2 | . . 1 1 2 . . . Penetration Max . | . . . . . . . . Secondary Targets 1 | . . 1 . . . . . Max Gunslinging Chain 1 | . . 1 . . . . . Shots Hit Robots 70 | 4 . 28 9 20 8 . 1 Core Hits 33 | 2 . 14 3 10 4 . . Critical Kills . | . . . . . . . . Critical Parts Destroyed . | . . . . . . . . Critical Strikes 5 | 1 . 2 . 1 1 . . Burn 3 | 1 . 2 . . . . . Impale 2 | . . . . 1 1 . . Melee Attacks 20 | . . . . 12 3 2 3 Impact . | . . . . . . . . Slashing . | . . . . . . . . Piercing 20 | . . . . 12 3 2 3 Sneak Attacks 5 | . . . . 5 . . . Combat Hostiles . | . . . . . . . . Follow-up Attacks . | . . . . . . . . Damage Inflicted 1474 | 51 . 489 131 617 153 . 33 Guns 800 | 51 . 423 131 115 80 . . Cannons . | . . . . . . . . Explosions 66 | . . 66 . . . . . Melee 608 | . . . . 502 73 . 33 Ramming . | . . . . . . . . Kinetic . | . . . . . . . . Thermal 791 | 51 . 414 131 115 80 . . Explosive . | . . . . . . . . Electromagnetic 75 | . . 75 . . . . . Impact . | . . . . . . . . Slashing . | . . . . . . . . Piercing 608 | . . . . 502 73 . 33 Highest Corruption . | . . . . . . . . Average Corruption . | . . . . . . . . Corruption Purged . | . . . . . . . . Corruption Blocked . | . . . . . . . . Overload Shots . | . . . . . . . . Overflow Damage 71 | . . 36 . 21 14 . . Projectiles . | . . . . . . . . Explosions 36 | . . 36 . . . . . Melee 35 | . . . . 21 14 . . Knockbacks . | . . . . . . . . Impact . | . . . . . . . . Kinetic . | . . . . . . . . Secondary . | . . . . . . . . Self-Inflicted Damage . | . . . . . . . . Shots . | . . . . . . . . Rammed . | . . . . . . . . Targets Rammed . | . . . . . . . . Kicked . | . . . . . . . . Crushed . | . . . . . . . . Highest Temperature 350 | 52 . 350 74 85 80 . 3 Average Temperature 99 | 27 . 180 32 41 51 . 3 Received Heat Transfer 432 | 12 21 87 . . 42 . 270 Effects 3 | . . 3 . . . . . Shutdowns 1 | . . 1 . . . . . Energy Bleed 2 | . . 2 . . . . . Siege Activations . | . . . . . . . . Robots Corrupted . | . . . . . . . . Combat Hostiles . | . . . . . . . . Parts Fried 1 | . . 1 . . . . . Impact Corruptions . | . . . . . . . . Robots Melted 1 | . . 1 . . . . . Combat Hostiles 1 | . . 1 . . . . . Parts Melted 6 | 1 . 3 1 . 1 . . Heat Transferred 2246 | 222 . 1136 333 333 222 . . Parts Sabotaged . | . . . . . . . . Parts Stolen . | . . . . . . . . Parts Stripped . | . . . . . . . . Power Chain Reactions 1 | . . 1 . . . . . Missiles Intercepted . | . . . . . . . . Alert | -11 -10 -9 -8 -7 -7 -7 -6 ------- Run | Scr Mat Mat Mat Fac Low Zio Pro Peak Influence 293 | 20 56 293 165 131 . . . Initial 105 | . 11 19 105 64 . . . Average 85 | 4 25 175 124 75 . . . Maximum Alert Level 1 | . . 1 . . . . . Low Security (%) 90 | 100 100 46 100 100 . . . Level 1 9 | . . 53 . . . . . Level 2 . | . . . . . . . . Level 3 . | . . . . . . . . Level 4 . | . . . . . . . . Level 5 . | . . . . . . . . High Security . | . . . . . . . . Max Security . | . . . . . . . . Squads Dispatched 6 | . . 2 2 1 . . 1 Investigation 1 | . . . . . . . 1 Extermination . | . . . . . . . . Reinforcement 5 | . . 2 2 1 . . . Assault . | . . . . . . . . Garrison . | . . . . . . . . Intercept . | . . . . . . . . Searches Triggered . | . . . . . . . . Construction Impeded . | . . . . . . . . Haulers Reinforced . | . . . . . . . . Active Scanning Responses . | . . . . . . . . Cargo Convoy Interrupts . | . . . . . . . . Stealth | -11 -10 -9 -8 -7 -7 -7 -6 --------- Run | Scr Mat Mat Mat Fac Low Zio Pro Distress Signals 4 | . 1 1 1 1 . . . Communications Jammed . | . . . . . . . . Distress Signals . | . . . . . . . . Times Spotted 53 | 1 5 13 3 4 13 . 14 Peak Tracking Total 14 | 1 3 7 2 2 7 . 14 Tactical Retreats 6 | . 2 . . . 4 . . Traps | -11 -10 -9 -8 -7 -7 -7 -6 ------- Run | Scr Mat Mat Mat Fac Low Zio Pro Traps Triggered 1 | . 1 . . . . . . Indirectly . | . . . . . . . . Trap Hack Attempts . | . . . . . . . . Triggered . | . . . . . . . . Disarmed . | . . . . . . . . Reprogrammed . | . . . . . . . . Reused . | . . . . . . . . Traps Extracted . | . . . . . . . . Installed . | . . . . . . . . Triggered 1 | . . . . . 1 . . Machines | -11 -10 -9 -8 -7 -7 -7 -6 ---------- Run | Scr Mat Mat Mat Fac Low Zio Pro Machines Disabled 1 | . . 1 . . . . . Max in Single Turn 1 | . . 1 . . . . . Machines Sabotaged . | . . . . . . . . Garrisons Compromised . | . . . . . . . . Overloaded Fab Kills . | . . . . . . . . Hacking | -11 -10 -9 -8 -7 -7 -7 -6 --------- Run | Scr Mat Mat Mat Fac Low Zio Pro Machines Accessed 9 | . . 2 2 4 . . 1 Terminals 7 | . . 2 2 2 . . 1 Fabricators . | . . . . . . . . Repair Stations 1 | . . . . 1 . . . Recycling Units 1 | . . . . 1 . . . Scanalyzers . | . . . . . . . . Garrison Access . | . . . . . . . . Total Hacks 21 | . . 5 4 9 . . 3 Successful 15 | . . 4 2 6 . . 3 Failed 6 | . . 1 2 3 . . . Catastrophic 1 | . . . 1 . . . . Database Lockouts . | . . . . . . . . Manual 2 | . . . . . . 2 . Terminals 15 | . . 5 4 3 . . 3 Fabricators . | . . . . . . . . Repair Stations 5 | . . . . 5 . . . Recycling Units 1 | . . . . 1 . . . Scanalyzers . | . . . . . . . . Garrison Access . | . . . . . . . . Terminal Hacks 11 | . . 4 2 2 . . 3 Record 4 | . . . . 1 . . 3 Alert Level 1 | . . . . 1 . . . Locate Traps 2 | . . 1 1 . . . . Maintenance Status 3 | . . 2 1 . . . . Hauler Manifests 1 | . . 1 . . . . . Fabricator Hacks . | . . . . . . . . Repair Station Hacks 4 | . . . . 4 . . . Scan Component 1 | . . . . 1 . . . Repair 1 | . . . . 1 . . . Refit 2 | . . . . 2 . . . Recycling Unit Hacks . | . . . . . . . . Scanalyzer . | . . . . . . . . Garrison Access Hacks . | . . . . . . . . Unauthorized Hacks . | . . . . . . . . Terminals . | . . . . . . . . Fabricators . | . . . . . . . . Repair Stations . | . . . . . . . . Recycling Units . | . . . . . . . . Scanalyzers . | . . . . . . . . Garrison Access . | . . . . . . . . Data Cores Recovered . | . . . . . . . . Used . | . . . . . . . . Hacking Detections 7 | . . 2 1 3 . . 1 Full Trace Events 2 | . . 1 . . . . 1 Feedback Events . | . . . . . . . . Feedback Blocked . | . . . . . . . . Robot Schematics Acquired 4 | . . . . . . 4 . Robots Built . | . . . . . . . . Authchips . | . . . . . . . . Time . | . . . . . . . . Total Robot Build Rating . | . . . . . . . . Part Schematics Acquired 14 | . . . . . . 14 . Parts Built . | . . . . . . . . Authchips . | . . . . . . . . Time . | . . . . . . . . Total Part Build Rating . | . . . . . . . . Parts Repaired 1 | . . . . 1 . . . Time 35 | . . . . 35 . . . Parts Recycled . | . . . . . . . . Recycled Matter . | . . . . . . . . Retrieved Matter . | . . . . . . . . Retrieved Components . | . . . . . . . . Parts Scanalyzed . | . . . . . . . . Part Schematics Acquired . | . . . . . . . . Parts Damaged . | . . . . . . . . Bothacking | -11 -10 -9 -8 -7 -7 -7 -6 ------------ Run | Scr Mat Mat Mat Fac Low Zio Pro Used RIF Installer . | . . . . . . . . Robots Hacked . | . . . . . . . . Non-combat . | . . . . . . . . Combat . | . . . . . . . . Robot Hacks Applied . | . . . . . . . . Relay Couplers Released . | . . . . . . . . Fabnet Peak Effective % . | . . . . . . . . Robots Rewired . | . . . . . . . . Allies Hacked . | . . . . . . . . Hacks Repelled . | . . . . . . . . Allies | -11 -10 -9 -8 -7 -7 -7 -6 -------- Run | Scr Mat Mat Mat Fac Low Zio Pro Total Allies 4 | . . . . . . 4 . Largest Group 4 | . . . . . . 4 . Highest-Rated Group 152 | . . . . . . 152 . Highest-Rated Ally 39 | . . . . . . 39 . Total Orders . | . . . . . . . . Ally Attacks . | . . . . . . . . Total Damage . | . . . . . . . . Kills . | . . . . . . . . Allies Corrupted . | . . . . . . . . Allies Melted . | . . . . . . . . Intel | -11 -10 -9 -8 -7 -7 -7 -6 ------- Run | Scr Mat Mat Mat Fac Low Zio Pro Robot Analysis Total . | . . . . . . . . Derelict Logs Recovered 4 | . . . . . 1 2 1 Drone Launches 2 | . . . . . . . 2 Drone Recoveries 1 | . . . . . . . 1 Exploration | -11 -10 -9 -8 -7 -7 -7 -6 ------------- Run | Scr Mat Mat Mat Fac Low Zio Pro Turns Passed 2266 | 61 208 226 103 732 139 754 43 Spaces Moved 3899 | 63 255 221 193 903 359 1854 51 Core 146 | 16 . . . 130 . . . Treads . | . . . . . . . . Legs . | . . . . . . . . Wheels 383 | 47 255 81 . . . . . Hover . | . . . . . . . . Flight 3370 | . . 140 193 773 359 1854 51 Fastest Speed 29 | 50 80 37 37 29 30 32 32 Average Speed 41 | 72 80 58 37 49 30 32 32 Slowest Speed 250 | 80 80 117 37 250 32 32 35 Overloaded Moves . | . . . . . . . . Propulsion Burnouts . | . . . . . . . . Robots Hopped 4 | . . 1 1 . 2 . . Cave-ins Triggered . | . . . . . . . . Exploration Rate (%) 32 | 6 34 27 16 20 50 93 10 Regions Visited 7 Branch Regions 3 Pre-discovered Areas 2 | . . . . . . 2 . Known Exits Taken . | . . . . . . . . Unknown Exits Taken 7 | 1 1 1 1 1 1 1 . Scrap Searched 5 | . . . . . 1 3 1 Spaces Dug . | . . . . . . . . Terrain Destroyed 2 | . . 2 . . . . . Melee . | . . . . . . . . Projectile . | . . . . . . . . AOE 2 | . . 2 . . . . . Terrain Rammed . | . . . . . . . . Walls Destroyed . | . . . . . . . . Machines Disabled . | . . . . . . . . Actions | -11 -10 -9 -8 -7 -7 -7 -6 --------- Run | Scr Mat Mat Mat Fac Low Zio Pro Total 4439 | 74 258 284 211 1155 374 2011 72 Wait 363 | . . 14 1 182 8 140 18 Move 3884 | 62 254 218 190 902 354 1853 51 Hop 4 | . . 1 1 . 2 . . Pick Up 42 | 4 2 9 3 18 . 6 . Fast Attach 8 | . . 3 . 5 . . . Attach 29 | 4 2 5 2 9 . 7 . Detach 7 | . . 3 2 . . 2 . Swap 5 | . . 4 . 1 . . . Drop 23 | . . 9 . 13 . 1 . Fire 54 | 4 . 18 12 13 7 . . Melee 20 | . . . . 12 3 2 3 Ram . | . . . . . . . . Kick . | . . . . . . . . Crush . | . . . . . . . . Escape Stasis . | . . . . . . . . Rewire . | . . . . . . . . Trap . | . . . . . . . . Miscellaneous . | . . . . . . . . Route ------- -11/Scrapyard -10/Materials -9/Materials -8/Materials -7/Factory -7/Lower Caves -7/Zion -6/Proximity Caves History --------- Turn | Location | Event 2 | -11/Scrapyard | Met Revision 17 38 | -11/Scrapyard | Discovered new exit (range 8) 62 | -11/Scrapyard | Entered Materials 218 | -10/Materials | Discovered new exit (range 16) 270 | -10/Materials | Entered another Materials area 270 | -9/Materials | Evolved 2 slots: Power x1, Utility x1 316 | -9/Materials | Build established: Mutant 405 | -9/Materials | Destroyed 7 combat bots 469 | -9/Materials | Discovered new exit (range 13) 496 | -9/Materials | Entered another Materials area 496 | -8/Materials | Evolved 2 slots: Power x1, Utility x1 574 | -8/Materials | Discovered new exit (range 10) 599 | -8/Materials | Entered Factory 599 | -7/Factory | Evolved 2 slots: Power x1, Propulsion x1 699 | -7/Factory | Build established: Scavenger-Mutant 862 | -7/Factory | Lost 4 parts (1p2n1u) 1093 | -7/Factory | Build established: Hacker-Mutant 1155 | -7/Factory | Repaired Faulty Hvy. Deuterium Engine 1278 | -7/Factory | Discovered new exit (range 7) 1331 | -7/Factory | Entered Lower Caves 1332 | -7/Lower Caves | Encountered a Warlord checkpoint 1396 | -7/Lower Caves | Learned 8 Factory zone layouts 1434 | -7/Lower Caves | Attracted the attention of an 0b10 checkpoint 1468 | -7/Lower Caves | A Derelict revealed a hidden shortcut to a safe place 1470 | -7/Lower Caves | Entered Zion 1490 | -7/Zion | Lost 9 parts (4p1n2u2w) 1496 | -7/Zion | Found CR-A16's Pointy Stick 1502 | -7/Zion | Learned Factory terminal intel 1525 | -7/Zion | Received a visual enhancement algorithm 1543 | -7/Zion | Learned Factory emergency access door positions 1625 | -7/Zion | Given the Hacking Drone Bay 1625 | -7/Zion | Found Prototype Device 1628 | -7/Zion | Identified Hacking Drone Bay 1718 | -7/Zion | Build established: Sprinter 1982 | -7/Zion | Imprinted 1984 | -7/Zion | Declared Zion's savior 2132 | -7/Zion | Discovered new exit (range 12) 2224 | -7/Zion | Entered Proximity Caves 2234 | -6/Proximity Caves | Learned Factory terminal intel 2237 | -6/Proximity Caves | Learned location of 2 exits from Lower Caves 2241 | -6/Proximity Caves | Attracted the attention of an 0b10 base 2253 | -6/Proximity Caves | Core integrity fell below 50% 2260 | -6/Proximity Caves | Core integrity fell below 20% 2267 | -6/Proximity Caves | Destroyed by S-27 Virus with Autogun Last Messages --------------- Cesium-ion Thruster destroyed. Mak. Power Source destroyed. S-27 Virus destroyed. Critical hit (Burn: +37). S-27 Virus destroyed. Outpost Terminal disabled. Penetrated by Slug. Machine disabled. Critical hit (Burn: +37). Hacking Drone released from Hacking Drone Bay. VTOL Module fries itself beyond repair. Penetrated by Slug. Imp. Melee Analysis Suite destroyed. VTOL Module fries itself beyond repair. Hacking Drone Bay destroyed. S-27 Virus destroyed. Slug penetrates Wall. >> Lost connection to Hacking Drone. Hacking Drone suffers critical hit (Burn). [Achievement: First Step to Greatness] Map ----- +----------------------------------------------------+ | ??????????##????# ### ## #????????????????? | | ??????????# ???# ###??????????????? | | ??????????# ??# ###????????????? | | ???????????# ## ##### ##???????????? | | ???????????# ##??## #????? #???? | | ???????????# #??## ### #????? | | ???????????# #??# #??????? | | ???????????# ##??# #??????? | | ??????????# ##??## ### #??????? | | ??????????# ##### #### #??????????? | | ??????????### #??????????? | | ????????????### #??????????? | | ??????????????# ######++++###### ##??????????? | | ??????????????# #"""""! """""# #???????????? | | ?????????????? # " "[% " " # #???????????? | | ????????????? # = # #???????????? | | ????????????## # #? ???????????? | | ?????????????## ?# ####++#### #? ???????????? | | ??????????????### ?# #" "# #? ??????????? | | ????????????????# ?+ #" "# +??????????????? | | ????????????????#??+ #" g "# +??????????????? | | ???????????????????# /n Y + ????????????????? | | ???????????????????####gg"""" #?????????????????? | | ???????????????????#""" """" "?????????????????? | | ???????????????????#"""sg""""g "?????????????????? | | ???????????????????# @* Y "?????????????????? | | ???????????????????#""" =%s%g "?????????????????? | | ???????????????????#############?????????????????? | | ?????????????????????????????????????????????????? | | ?????????????????????????????????????????????????? | | ?????????????????????????????????????????????????? | | ?????????????????????????????????????????????????? | | ?????????????????????????????????????????????????? | | ?????????????????????????????????????????????????? | | ?????????????????????????????????????????????????? | | ?????????????????????????????????????????????????? | | ?????????????????????????????????????????????????? | | ?????????????????????????????????????????????????? | | ?????????????????????????????????????????????????? | | ?????????????????????????????????????????????????? | | ?????????????????????????????????????????????????? | | ?????????????????????????????????????????????????? | | ?????????????????????????????????????????????????? | | ?????????????????????????????????????????????????? | | ?????????????????????????????????????????????????? | | ?????????????????????????????????????????????????? | | ?????????????????????????????????????????????????? | | ?????????????????????????????????????????????????? | | ?????????????????????????????????????????????????? | | ?????????????????????????????????????????????????? | +----------------------------------------------------+ Best States ------------- Heat Dissipation 34 Energy Generation 30 Energy Capacity 325 Matter Stores 328 Matter Capacity 500 Sight Range 18 Robot Scan Range 15 Terrain Scan Density 10 Additional Mass Support 6 Resistance: KI 20 Resistance: TH 20 Resistance: EX 20 Resistance: EM 20 Resistance: I 20 Resistance: S 20 Resistance: P 20 Evasion (%) 64 Melee Accuracy 6 Energy Filtering 30 Offensive Hacking 20 Item Schematics ----------------- Adv. Shield Generator | -7/Zion | Archive Mak. Thermal Plating | -7/Zion | Archive Drone Bay | -7/Zion | Archive Gatling Laser | -7/Zion | Archive Imp. Core Shielding | -7/Zion | Archive Gauss Rifle | -7/Zion | Archive Imp. Reaction Control System | -7/Zion | Archive Mak. Terrain Scan Processor | -7/Zion | Archive Mass Driver | -7/Zion | Archive Recalibrator | -7/Zion | Archive Focal Shield | -7/Zion | Archive Shock Absorption System | -7/Zion | Archive Imp. Medium Treads | -7/Zion | Archive Mak. Cloaking Device | -7/Zion | Archive Robot Schematics ------------------ L-41 Fighter | -7/Zion | Archive A-02 Transporter | -7/Zion | Archive G-47 Trooper | -7/Zion | Archive L-61 Swordsman | -7/Zion | Archive Fabricated ------------ Nothing Alien Tech Used ----------------- None Achievements -------------- Crack Shot First Step to Greatness It's Just You Loot Pinata Made in Tau Ceti IV One Hack Too Far Part-time Mechanic Risk Taker Robot Respite Shopping List The One Tourist Uninvited Guest Watch This! Challenges ------------ None Game ------ Seed BiometalRemoteDissipator Manual? 0 Play Time 01:53:11 Cumulative 3.7 hours Start 2022.03.19 @ 11:55:19 End 2022.03.20 @ 23:45:21 Sessions 5 Manual Loads 0 Difficulty Adventurer Special Mode None Game No. 2 Rogue 1 Adventurer 1 Explorer 0 Win Type - Total 0 Types 0/0/0/0/0/0/0/0/0 Lore% 4 Gallery% 5 Achievement% 5 Wizard Run 0 Options --------- ASCII 0 Keyboard 0 Movement Mouse Keybinds 0 Fullscreen 1 Font 24/Proggy Map View 76x56 Tactical HUD 0 Map Filters NONE Filters NONE Steam 1 RUN: 02faacef-ab05-464f-92ee-c2cf7d39b4fe